{"text_format":"1","workbook":"xlsx","n_sheets":1,"sheets":["Prikaz pojedinačnih troškova"],"not_rendered":{"charts":0,"images":1,"macros":0,"external_links":0,"defined_names":0,"comments":0,"pivot_tables":0},"unopened":[],"bounds":{"document_bytes":16777216,"sheet_cells":100000,"rows_first":2000,"rows_last":500,"rows_between":2000,"halvings":0,"cell_chars":16384,"cell_head_chars":4096},"cells_cut":0,"cells_raw":0,"read":"whole","date_system":"1900"}

{"sheet":"Prikaz pojedinačnih troškova","index":0,"n_rows":124,"n_cols":6,"rows_kept":124,"cut":false,"hidden":false,"merged":[[118,0,118,3],[94,0,94,1],[81,0,81,3],[85,0,85,3],[40,0,40,1],[43,0,43,3],[44,0,44,1],[55,0,55,3],[51,0,51,3],[47,0,47,3],[48,0,48,1],[56,0,56,3],[74,0,74,1],[77,0,77,3],[78,0,78,1],[82,0,82,1],[97,0,97,3],[98,0,98,1],[89,0,89,3],[90,0,90,1],[93,0,93,3],[123,0,123,2],[101,0,101,3],[61,0,61,1],[117,0,117,3],[109,0,109,1],[112,0,112,3],[113,0,113,1],[116,0,116,3],[69,0,69,3],[64,0,64,3],[65,0,65,1],[68,0,68,3],[120,3,120,5],[123,3,123,5],[102,0,102,3],[120,0,120,2],[20,0,20,5],[35,0,35,3],[27,0,27,1],[30,0,30,3],[31,0,31,1],[34,0,34,3],[0,0,0,5],[59,0,59,5],[72,0,72,5],[107,0,107,5],[105,0,106,5],[23,0,24,5],[25,0,25,5],[38,0,38,5],[2,0,2,5],[5,0,5,5],[8,0,8,5],[9,0,9,5],[10,0,10,5],[13,0,13,5],[14,0,14,5],[17,0,17,5]]}
["REPUBLIKA HRVATSKA\n\nSREDIŠNJI DRŽAVNI URED ZA DEMOGRAFIJU I MLADE"]
[]
["Prilog 1. \nPoziv za prijavu projekata udruga usmjerenih podršci roditeljstvu za 2022. godinu"]
[]
[]
["Prikaz pojedinačnih troškova potrebno je dostaviti uz Obrazac financijskog izvještaja (polugodišnji i završni).\nMolimo da ovaj Prilog  popunite isključivo računalom. \nBroj stranica ovoga Izvještaja nije ograničen.\nPolugodišnji/Završni izvještaj"]
[]
[]
["Naziv udruge:"]
[]
[]
[]
[]
["Naziv projekta:"]
[]
[]
[]
["PRIKAZ POJEDINAČNIH TROŠKOVA\nprovedenih aktivnosti projekata udruga usmjerenih podršci roditeljstvu za 2022. godinu u razdoblju od _______. do _______. godine, plaćenih iz sredstava Središnjeg državnog ureda za demografiju i mlade\n"]
[]
[]
["Napomene:\n1. Molimo da u Tablicu upišete sve troškove provedenih aktivnosti koji su izravno vezani za provedbu projekta \n2. Svaki nastali trošak potrebno je pravdati skeniranim izvornikom pisanog dokaza (račun, obračun plaće, ugovor, putni nalog i sl.), kao i skeniranim izvodima iz banke ili FINA-e, odnosno isplatnice i blagajničkog izvještaja kao dokaz bezgotovinskog, odnosno gotovinskog plaćanja. Trošak mora biti u skladu s odobrenom specifikacijom, odnosno ukoliko Središnji državni ured za demografiju i mlade ne pokriva cijeli iznos, na pisanom dokazu troška označava se udio Središnjeg državnog ureda u tom trošku.\n3. Svu skeniranu dokumentaciju potrebno je pohraniti na USB priključku ili CD/DVD-u pod rednim brojem i naslovom označenom u obrascu prikaza pojedinačnih troškova. \n4. Ako udruga ne dostavi sve potrebne dokaze plaćanja, napravljeni trošak neće biti priznat."]
[]
[]
["A) IZRAVNI TROŠKOVI (specificirati troškove koji su izravno povezani s projektom)"]
[]
["1. Ljudski resursi  (specificirati troškove plaća i naknada za zaposlene te vrstu naknade drugog dohotka) \nNAPOMENA: navesti imena i prezimena osoba kojima će se isplatiti plaća, razdoblje za koje se plaća isplaćuje i naziv radnog mjesta te imena i prezimena osoba kojima će se isplatiti naknada i za koje poslove"]
["Redni broj","Datum plaćanja","Broj izvatka ili blagajničkog izvještaja","Opis troška","Iznos u €","Iznos u kn"]
[null,null,null,"1.1. Plaće"]
["1."]
["2."]
["Ukupno",null,null,null,{"$f":"SUM(E29:E30)","v":0},{"$f":"SUM(F29:F30)","v":0}]
[null,null,null,"1.2. Naknade"]
["1."]
["2."]
["Ukupno",null,null,null,{"$f":"SUM(E33:E34)","v":0},{"$f":"SUM(F33:F34)","v":0}]
["1. Ukupno ljudski resursi",null,null,null,{"$f":"SUM(E31,E35)","v":0},{"$f":"SUM(F31,F35)","v":0}]
[]
[]
["2. Putovanja (specificirati putne troškove, dnevnice i troškove smještaja za potrebe obavljanja projektnih aktivnosti)"]
["Redni broj","Datum plaćanja","Broj izvatka ili blagajničkog izvještaja","Opis troška","Iznos u €","Iznos u kn"]
[null,null,null,"2.1."]
["1."]
["2."]
["Ukupno",null,null,null,{"$f":"SUM(E42:E43)","v":0},{"$f":"SUM(F42:F43)","v":0}]
[null,null,null,"2.2. "]
["1."]
["2."]
["Ukupno",null,null,null,{"$f":"SUM(E46:E47)","v":0},{"$f":"SUM(F46:F47)","v":0}]
[null,null,null,"2.3."]
["1."]
["2."]
["Ukupno",null,null,null,{"$f":"SUM(E50:E51)","v":0},{"$f":"SUM(F50:F51)","v":0}]
[null,null,null,"2.4."]
["1."]
["2."]
["Ukupno",null,null,null,{"$f":"SUM(E54:E55)","v":0},{"$f":"SUM(F54:F55)","v":0}]
["2. Ukupno putovanja",null,null,null,{"$f":"SUM(E44,E48,E52,E56)","v":0},{"$f":"SUM(F44,F48,F52,F56)","v":0}]
[]
[]
["3. Oprema i roba "]
["Redni broj","Datum plaćanja","Broj izvatka ili blagajničkog izvještaja","Opis troška","Iznos u €","Iznos u kn"]
[null,null,null,"3.1."]
["1."]
["2."]
["Ukupno",null,null,null,{"$f":"SUM(E63:E64)","v":0},{"$f":"SUM(F63:F64)","v":0}]
[null,null,null,"3.2."]
["1."]
["2."]
["Ukupno",null,null,null,{"$f":"SUM(E67:E68)","v":0},{"$f":"SUM(F67:F68)","v":0}]
["3. Ukupno oprema i roba",null,null,null,{"$f":"SUM(E65,E69)","v":0},{"$f":"SUM(F65,F69)","v":0}]
[]
[]
["4. OSTALI TROŠKOVI, USLUGE (kampanje, edukacije za ključne korisnike, troškovi praćenja i vrednovanja provedbe projekta, drugi troškovi neophodni i neposredno vezani i nužni za provedbu projektnih aktivnosti i sl.)"]
["Redni broj","Datum plaćanja","Broj izvatka ili blagajničkog izvještaja","Opis troška","Iznos u €","Iznos u kn"]
[null,null,null,"4.1."]
["1."]
["2."]
["Ukupno",null,null,null,{"$f":"SUM(E76:E77)","v":0},{"$f":"SUM(F76:F77)","v":0}]
[null,null,null,"4.2."]
["1."]
["2."]
["Ukupno",null,null,null,{"$f":"SUM(E80:E81)","v":0},{"$f":"SUM(F80:F81)","v":0}]
[null,null,null,"4.3."]
["1."]
["2."]
["Ukupno",null,null,null,{"$f":"SUM(E84:E85)","v":0},{"$f":"SUM(F84:F85)","v":0}]
[null,null,null,"4.4."]
["1."]
["2."]
["Ukupno",null,null,null,{"$f":"SUM(E88:E89)","v":0},{"$f":"SUM(F88:F89)","v":0}]
[null,null,null,"4.5."]
["1."]
["2."]
["Ukupno",null,null,null,{"$f":"SUM(E92:E93)","v":0},{"$f":"SUM(F92:F93)","v":0}]
[null,null,null,"4.6."]
["1."]
["2."]
["Ukupno",null,null,null,{"$f":"SUM(E96:E97)","v":0},{"$f":"SUM(F96:F97)","v":0}]
[null,null,null,"4.7."]
["1."]
["2."]
["Ukupno",null,null,null,{"$f":"SUM(E100:E101)","v":0},{"$f":"SUM(F100:F101)","v":0}]
["4. Ukupno ostali troškovi i usluge",null,null,null,{"$f":"SUM(E78,E82,E86,E90,E94,E98,E102)","v":0},{"$f":"SUM(F78,F82,F86,F90,F94,F98,F102)","v":0}]
[]
[]
["B) NEIZRAVNI TROŠKOVI (specificirati troškove koji su neizravno povezani s provedbom projekta) – udio do najviše 20% vrijednosti proračuna projekta"]
[]
["5. Troškovi obavljanja osnovne djelatnosti (specificirati, npr. režije – plin, struja, voda, najam prostora, knjigovodstveni servis)"]
["Redni broj","Datum plaćanja","Broj izvatka ili blagajničkog izvještaja","Opis troška","Iznos u €","Iznos u kn"]
[null,null,null,"5.1."]
["1."]
["2."]
["Ukupno",null,null,null,{"$f":"SUM(E111:E112)","v":0},{"$f":"SUM(F111:F112)","v":0}]
[null,null,null,"5.2."]
["1."]
["2."]
["Ukupno",null,null,null,{"$f":"SUM(E115:E116)","v":0},{"$f":"SUM(F115:F116)","v":0}]
["5. Ukupno troškovi obavljanja osnovne djelatnosti",null,null,null,{"$f":"SUM(E113,E117)","v":0},{"$f":"SUM(F113,F117)","v":0}]
["UKUPNO:",null,null,null,{"$f":"SUM(E118,E103,E70,E57,E36)","v":0},{"$f":"SUM(F118,F103,F70,F57,F36)","v":0}]
[]
["Ime i prezime, te potpis odgovorne osobe i pečat"]
[]
[]
["Mjesto i datum sastavljanja izvještaja:"]